bitfinex/quotes_ETHUSD_20210701
["timestamp","ask_amount","ask_price","bid_price","bid_amount"]
[1625166215909,10.0793,2106.3,2104.4,0.02534349]
[1625166216009,10.0793,2106.3,2104.6,0.01078944]
[1625166216223,26.3607,2106.5,2104.6,15.01771583]
[1625166216420,26.3607,2106.5,2104.7,2.7725843]
[1625166216570,26.3607,2106.5,2104.8,18.8102]
[1625166216667,26.3607,2106.5,2104.9,0.14907671]
[1625166216923,16.3901,2106.5,2104.9,0.14907671]
[1625166217092,23.51013,2106.5,2104.9,2.92166101]
[1625166217336,23.51013,2106.5,2104.9,0.14907671]
[1625166217437,0.08,2106.4,2104.9,0.14907671]
[1625166217541,3.6942,2106.4,2104.8,0.01978918]
[1625166217740,3.6142,2106.4,2104.8,0.01978918]
[1625166217890,3.6142,2106.4,2104.4,2.80067879]
[1625166217988,3.6142,2106.4,2104.4,7.81067879]
[1625166218094,3.6142,2106.4,2104.5,15.0]
[1625166218243,3.6142,2106.4,2104.8,2.7725843]
[1625166218341,3.6142,2106.4,2104.8,20.19686745]
[1625166218449,3.6142,2106.4,2104.8,10.20686745]
[1625166218591,18.0139,2106.5,2104.8,5.19686745]
[1625166218740,16.3901,2106.5,2104.8,10.20686745]
[1625166218891,16.3901,2106.5,2104.8,5.19686745]
[1625166218992,16.3901,2106.5,2104.8,10.20686745]
[1625166219191,16.3901,2106.5,2104.8,25.20686745]
[1625166219408,16.3901,2106.5,2104.8,10.20686745]
[1625166219560,16.3901,2106.5,2105.1,9.49103]
[1625166219759,16.3901,2106.5,2105.1,14.50103]
[1625166219865,16.3901,2106.5,2105.1,14.40103]
[1625166220162,21.4001,2106.5,2105.1,14.40103]
[1625166220416,21.4001,2106.5,2105.1,9.39103]
[1625166220514,16.3901,2106.5,2105.1,14.40103]
[1625166220613,16.3901,2106.5,2105.1,32.18307484]
[1625166220718,6.179,2106.5,2105.1,34.59651356]
[1625166220811,6.179,2106.5,2105.2,0.06]
[1625166221266,6.179,2106.5,2105.3,2.7725843]
[1625166221414,6.179,2106.5,2105.4,15.0]
[1625166221584,6.179,2106.5,2105.8,7.11684]
[1625166221675,6.179,2106.5,2105.8,11.19724]
[1625166221775,6.179,2106.5,2105.8,16.20724]
[1625166221928,6.179,2106.5,2105.8,31.20724]
[1625166222028,9.9978,2107.0,2105.8,31.20724]
[1625166222130,3.55868,2107.3,2105.9,29.26846863]
[1625166222232,10.99361077,2107.7,2106.0,15.0]
[1625166222381,10.99361077,2107.7,2106.0,23.21351904]
[1625166222476,10.99361077,2107.7,2106.1,0.02126595]
[1625166222632,0.52881077,2107.7,2106.2,0.12661284]
[1625166222778,11.045,2107.9,2106.2,0.14432728]
[1625166222883,20.7117,2108.2,2106.6,7.11404]
[1625166222979,10.0107,2108.2,2106.7,0.08798037]
[1625166223128,15.41737,2108.5,2106.7,0.08798037]
[1625166223129,11.85988,2108.5,2106.7,0.08798037]
[1625166223676,2.202,2108.4,2106.7,0.08798037]
[1625166223953,2.28,2108.4,2106.6,0.96105852]
[1625166224150,2.286,2108.4,2106.6,0.96105852]
[1625166224252,2.286,2108.4,2106.6,0.01895852]
[1625166224404,7.11497,2107.8,2106.4,0.08160459]
[1625166224553,7.11497,2107.8,2106.4,0.01863233]
[1625166224752,12.12497,2107.8,2106.3,9.89960136]
[1625166224852,7.11497,2107.8,2106.3,9.89960136]
[1625166224956,12.12497,2107.8,2106.3,9.89960136]
[1625166225154,5.01,2107.8,2106.3,17.78455136]
[1625166225256,27.01788,2108.5,2106.4,0.04613747]
[1625166225355,14.00788,2108.5,2106.4,3.54973747]
[1625166225455,11.85988,2108.5,2106.5,15.0]
[1625166225558,7.114,2108.2,2106.7,7.11342]
[1625166225655,7.114,2108.2,2106.7,7.12667293]
[1625166225758,7.114,2108.2,2106.7,12.13667293]
[1625166225957,7.114,2108.2,2106.7,5.02325293]
[1625166226065,11.85988,2108.5,2106.7,17.78583723]
[1625166226165,11.85988,2108.5,2106.8,0.11069713]
[1625166226264,11.85988,2108.5,2106.8,0.08]
[1625166226414,3.55702,2108.6,2106.8,0.08]
[1625166226516,3.55702,2108.6,2106.9,2.7725843]
[1625166226615,10.66966,2108.6,2106.9,2.7725843]
[1625166226718,10.66966,2108.6,2106.9,2.78351633]
[1625166226817,10.66966,2108.6,2106.9,2.7725843]
[1625166226970,12.38356,2108.6,2106.5,9.49282519]
[1625166227064,17.29826,2108.6,2106.5,9.49282519]
[1625166227167,3.55732,2108.5,2106.5,9.49282519]
[1625166227367,8.56732,2108.5,2106.5,9.49282519]
[1625166227466,3.55732,2108.5,2106.5,9.49282519]
[1625166227567,8.56732,2108.5,2106.5,9.48423]
[1625166227765,8.56732,2108.5,2106.5,9.49256582]
[1625166227866,10.64932,2108.5,2106.5,9.49256582]
[1625166228118,3.5575,2108.2,2106.5,9.49256582]
[1625166228307,5.8284,2108.2,2106.5,9.48423]
[1625166228363,10.8384,2108.2,2106.5,9.48423]
[1625166228462,7.11492,2107.7,2106.5,9.48423]
[1625166228612,16.43712,2107.7,2106.5,9.48423]
[1625166228767,11.42712,2107.7,2106.5,9.48423]
[1625166228861,16.43712,2107.7,2106.5,9.48423]
[1625166228963,11.42712,2107.7,2106.5,9.48423]
[1625166229064,4.3122,2107.7,2106.5,12.2568143]
[1625166229362,4.3122,2107.7,2106.5,27.2568143]
[1625166229466,4.3122,2107.7,2106.5,29.72357253]
[1625166229565,3.5575,2108.2,2106.5,29.72357253]
[1625166229712,3.5575,2108.2,2106.5,34.26617253]
[1625166229811,8.5675,2108.2,2106.5,34.26617253]
[1625166230063,8.5675,2108.2,2106.5,39.2847079]
[1625166230218,7.11405,2108.0,2106.9,7.11354]
[1625166230663,7.11405,2108.0,2106.9,9.8861243]
[1625166231673,7.11405,2108.0,2106.9,9.7861243]
[1625166231772,15.68075,2108.2,2106.9,14.7961243]
[1625166231875,12.12325,2108.2,2106.9,29.7961243]
[1625166231975,5.01,2108.2,2107.0,0.08]
[1625166232076,14.74555,2108.6,2107.0,3.846]
[1625166232277,22.74555,2108.6,2107.0,3.766]
[1625166232376,3.55714,2108.3,2107.0,3.766]
[1625166232576,11.70784,2108.3,2107.0,3.766]
[1625166233299,11.70784,2108.3,2106.9,3.7630843]
[1625166233399,11.70784,2108.3,2106.9,2.7725843]
[1625166234451,18.82103,2108.3,2107.1,7.11319]
[1625166235373,11.70784,2108.3,2107.1,7.11319]
[1625166235574,11.65784,2108.3,2107.1,7.11319]
[1625166236424,7.11351,2108.2,2107.1,7.11319]
[1625166236524,12.12351,2108.2,2107.1,7.11319]
[1625166236878,7.11351,2108.2,2107.1,7.11319]
[1625166236983,1.4469,2108.3,2107.2,2.70239816]
[1625166237081,6.179,2108.6,2107.2,2.70239816]
[1625166237181,6.179,2108.6,2107.2,7.71239816]
[1625166237525,6.179,2108.6,2107.2,2.70239816]
[1625166237526,13.29129,2108.6,2107.2,2.70239816]
[1625166237726,6.179,2108.6,2107.2,2.70239816]
[1625166238331,11.189,2108.6,2107.2,2.70239816]
[1625166238430,6.179,2108.6,2107.2,2.70239816]
[1625166238600,20.0,2108.4,2106.4,16.48434639]
[1625166238741,0.16940275,2108.3,2106.4,12.28434639]
[1625166238831,20.0,2108.2,2106.4,5.16915639]
[1625166238977,4.23093074,2108.1,2106.3,10.7283]
[1625166239075,9.24093074,2108.1,2106.3,10.7283]
[1625166239327,9.20093074,2108.1,2106.3,10.7283]
[1625166239973,7.1148,2107.7,2106.3,7.1153]
[1625166240122,15.68305,2107.7,2106.3,9.81769816]
[1625166240221,12.10825,2107.7,2106.3,9.81769816]
[1625166240325,17.11825,2107.7,2106.3,9.81769816]
[1625166240421,17.11825,2107.7,2106.3,14.82769816]
[1625166240522,12.10825,2107.7,2106.3,14.82769816]
[1625166241374,7.1148,2107.7,2106.3,14.77769816]
[1625166241475,9.48685,2107.8,2106.4,15.0]
[1625166241574,18.0548,2108.2,2106.4,20.01]
[1625166241773,26.0548,2108.2,2106.4,20.01854295]
[1625166241923,18.0548,2108.2,2106.5,2.70239816]
[1625166242023,18.0548,2108.2,2106.5,22.71239816]
[1625166242176,8.56728,2108.2,2106.5,7.71239816]
[1625166242275,16.56728,2108.2,2106.5,2.70239816]
[1625166242425,7.11532,2107.6,2106.5,2.70239816]
[1625166242574,12.12532,2107.6,2106.5,2.65239816]
[1625166243027,7.11532,2107.6,2106.5,2.65239816]
[1625166243133,13.0448,2108.2,2106.6,15.0]
[1625166243232,9.7363611,2108.6,2106.6,15.0]
[1625166243233,6.179,2108.6,2106.6,15.0]
[1625166243328,6.179,2108.6,2106.7,0.2]
[1625166243479,6.179,2108.6,2106.8,0.01188345]
[1625166243578,13.2908,2108.6,2107.3,7.11193]
[1625166243681,13.2908,2108.6,2107.3,11.31603]
[1625166243777,13.2908,2108.6,2107.3,16.32603]
[1625166243979,13.2908,2108.6,2107.3,16.33495183]
[1625166244140,13.2908,2108.6,2107.3,24.22302183]
[1625166244141,6.179,2108.6,2107.3,24.22302183]
[1625166244247,11.037,2108.8,2107.4,2.69823149]
[1625166244338,11.037,2108.8,2107.5,15.0]
[1625166244488,11.037,2108.8,2107.5,15.05115073]
[1625166244591,11.037,2108.8,2107.5,21.53415073]
[1625166244788,11.037,2108.8,2107.6,2.69823149]
[1625166244890,11.037,2108.8,2107.7,15.0]
[1625166244994,11.037,2108.8,2107.9,7.11016]
[1625166245092,11.037,2108.8,2107.6,17.18867149]
[1625166245193,9.48116,2109.1,2107.6,17.18867149]
[1625166246381,9.48116,2109.1,2107.6,32.18867149]
[1625166246440,9.48116,2109.1,2107.6,17.18867149]
[1625166246689,14.49116,2109.1,2107.6,17.18867149]
[1625166247289,7.11058,2108.9,2107.6,17.18867149]
[1625166247542,12.12058,2108.9,2107.6,17.18867149]
[1625166247793,16.82338,2108.9,2107.3,9.48179]
[1625166247895,16.82338,2108.9,2107.3,14.49179]
[1625166247995,24.82338,2108.9,2107.3,14.49179]
[1625166248099,17.7128,2108.9,2107.0,9.48295]
[1625166248246,4.54244,2108.5,2107.0,9.48295]
[1625166248346,7.11379,2107.9,2107.0,9.48295]
[1625166248491,11.93219,2107.9,2107.0,9.48295]
[1625166248652,4.8184,2107.9,2107.0,14.49295]
[1625166248748,4.8184,2107.9,2107.1,0.08]
[1625166249500,4.8184,2107.9,2107.0,9.48295]
[1625166249600,15.66271,2108.4,2107.0,14.49295]
[1625166249848,15.66271,2108.4,2107.0,9.48295]
[1625166249948,15.66271,2108.4,2107.0,12.18118149]
[1625166250300,15.66271,2108.4,2107.0,17.19118149]
[1625166250506,7.11254,2108.2,2107.4,7.11221]
[1625166251308,3.55615,2108.5,2107.4,12.12221]
[1625166251404,10.8509,2108.7,2107.4,13.99204149]
[1625166251554,10.8509,2108.7,2107.5,0.08]
[1625166251659,17.96168,2108.7,2107.9,7.11046]
[1625166251807,17.96168,2108.7,2107.9,10.63256]
[1625166252003,7.11078,2108.7,2107.9,10.63256]
[1625166255494,13.28978,2108.7,2107.9,10.63256]
[1625166255995,6.179,2108.7,2107.9,10.63256]
[1625166256095,11.85501,2109.1,2107.9,10.63256]
[1625166256299,16.86501,2109.1,2107.9,10.63256]
[1625166256499,7.11062,2108.8,2107.9,10.63256]
[1625166256994,7.11062,2108.8,2107.9,3.5221]
[1625166257149,7.11062,2108.8,2107.7,9.48061]
[1625166257396,7.11062,2108.8,2107.6,2.69823149]
[1625166257498,7.11062,2108.8,2107.6,7.70823149]
[1625166257657,7.11062,2108.8,2107.6,2.69823149]
[1625166257810,9.48291,2108.6,2107.6,2.69823149]
[1625166257904,2.3157,2108.5,2107.1,30.4983]
[1625166258002,3.65699988,2108.5,2107.0,9.48295]
[1625166258103,0.01215758,2108.4,2106.7,16.15728972]
[1625166258201,0.20804769,2108.3,2106.7,10.9923]
[1625166258654,29.3,2108.2,2106.7,9.7243]
[1625166258756,0.2308521,2108.1,2106.7,9.7243]
[1625166258909,7.11374,2107.9,2106.7,9.7243]
[1625166259004,0.2308521,2108.1,2106.8,2.69823149]
[1625166259106,0.2308521,2108.1,2106.8,2.75823149]
[1625166259254,0.15000623,2108.4,2106.8,2.75823149]
[1625166259355,0.17174653,2108.6,2107.0,6.01825823]
[1625166259505,3.55622,2108.5,2107.1,15.0]
[1625166259606,20.85308636,2108.7,2107.1,15.0]
[1625166259703,20.85308636,2108.7,2107.1,20.01]
[1625166259805,20.85308636,2108.7,2107.1,22.70823149]
[1625166259921,0.00808636,2108.7,2107.2,2.46675823]
[1625166260064,0.00808636,2108.7,2107.8,12.04807]
[1625166260261,0.00808636,2108.7,2107.8,17.05807]
[1625166260413,0.00808636,2108.7,2107.9,2.46675823]
[1625166260714,0.00808636,2108.7,2107.9,5.16498972]
[1625166261063,0.00808636,2108.7,2108.0,9.47952]
[1625166261167,0.00808636,2108.7,2107.7,9.48104]
[1625166261350,0.00808636,2108.7,2107.3,10.6549]
[1625166261445,3.65338636,2108.7,2107.3,10.6549]
[1625166262043,3.65338636,2108.7,2107.1,11.0503]
[1625166262199,8.6553,2108.7,2107.1,11.0503]
[1625166262300,3.6453,2108.7,2107.1,11.0503]
[1625166262399,8.6553,2108.7,2107.2,13.35393149]
[1625166263456,7.11202,2108.4,2107.5,7.11191]
[1625166263555,5.01,2108.7,2107.5,7.11191]
[1625166263655,24.22692,2108.8,2107.5,7.11191]
[1625166264444,7.11173,2108.5,2107.5,7.11191]
[1625166264593,10.57113,2108.5,2107.5,7.11191]
[1625166266060,15.58113,2108.5,2107.4,9.48239]
[1625166266155,23.58113,2108.5,2107.2,2.69823149]
[1625166266303,0.20207471,2108.4,2106.9,10.8522]
[1625166266447,0.36810292,2108.4,2106.7,9.7243]
[1625166266716,0.19464385,2108.2,2106.7,9.7243]
[1625166266820,0.20133748,2108.2,2106.7,9.7243]
[1625166266919,1.14713748,2108.2,2106.7,9.7243]
[1625166267169,7.11485,2107.6,2106.8,17.26941]
[1625166267271,4.2789,2107.6,2106.8,7.11441]
[1625166267819,4.2789,2107.6,2106.8,9.81264149]
[1625166268018,4.2789,2107.6,2106.8,14.82264149]
[1625166268119,4.2789,2107.6,2106.8,9.81264149]
[1625166268219,2.8052,2107.7,2106.8,9.81264149]
[1625166268370,7.11383,2107.9,2106.8,9.81264149]
[1625166269140,0.95249363,2108.2,2106.8,9.81264149]
[1625166269243,0.00669363,2108.2,2106.8,9.81264149]
[1625166269338,0.00669363,2108.2,2106.9,0.08]
[1625166269439,7.11312,2108.1,2107.2,7.1131]
[1625166269842,12.12312,2108.1,2107.2,7.1131]
[1625166269948,12.12312,2108.1,2107.0,9.48413]
[1625166270049,23.68029,2108.1,2106.9,2.69823149]
[1625166270198,16.56717,2108.1,2106.8,2.46675823]
[1625166270348,0.1,2108.0,2106.6,9.4858]
[1625166270547,9.48694,2107.8,2106.6,9.4858]
[1625166270743,14.49694,2107.8,2106.6,9.4858]
[1625166270844,9.48694,2107.8,2106.6,9.4858]
[1625166270948,9.48694,2107.8,2106.6,14.4958]
[1625166271044,14.49694,2107.8,2106.6,14.4958]
[1625166271195,14.49694,2107.8,2106.6,17.19403149]
[1625166271294,14.49694,2107.8,2106.6,12.18403149]
[1625166271593,14.49694,2107.8,2106.6,17.19403149]
[1625166271742,14.49694,2107.8,2106.6,12.18403149]
[1625166272042,7.11517,2107.6,2106.6,12.18403149]
[1625166272242,12.12517,2107.6,2106.6,12.18403149]
[1625166272444,7.11517,2107.6,2106.6,12.18403149]
[1625166272645,12.12517,2107.6,2106.6,9.4858]
[1625166273500,7.11517,2107.6,2106.6,9.4858]
[1625166274805,1.0245,2107.8,2106.2,42.3832239]
[1625166274898,4.5984,2108.0,2106.5,5.01]
[1625166274999,5.01,2108.0,2106.3,0.06]
[1625166275096,5.01669363,2108.2,2106.3,0.06]
[1625166275201,0.00669363,2108.2,2106.3,0.06]
[1625166275298,0.00669363,2108.2,2106.2,11.85438]
[1625166275299,5.01669363,2108.2,2106.2,11.85438]
[1625166275452,0.18371354,2108.1,2106.2,11.85438]
[1625166276381,7.29916814,2108.1,2106.2,11.85438]
[1625166276519,7.1151,2107.5,2106.6,9.4858]
[1625166276616,7.1151,2107.5,2106.6,14.0973]
[1625166276717,7.1151,2107.5,2106.6,19.1073]
[1625166276915,9.48694,2107.8,2106.6,19.1073]
[1625166277016,14.49694,2107.8,2106.6,19.1073]
[1625166277115,3.55766,2107.7,2106.6,19.1073]
[1625166277217,14.49694,2107.8,2106.6,19.1073]
[1625166277366,14.49694,2107.8,2106.7,0.1]
[1625166277570,14.49694,2107.8,2106.9,7.11377]
[1625166277666,5.01,2107.8,2106.9,7.11377]
[1625166277870,12.12377,2107.9,2106.9,7.11377]
[1625166278014,12.12377,2107.9,2106.9,9.42293649]
[1625166278463,7.11377,2107.9,2106.9,9.42293649]
[1625166278620,3.56369363,2108.2,2106.9,14.43293649]
[1625166278967,7.11311,2108.1,2106.9,14.43293649]
[1625166279115,7.11311,2108.1,2106.9,7.31916649]
[1625166279216,7.11311,2108.1,2106.9,2.30916649]
[1625166280222,12.12311,2108.1,2106.9,2.30916649]
[1625166280321,7.11311,2108.1,2106.9,9.42293649]
[1625166280422,12.12311,2108.1,2106.9,2.30916649]
[1625166280670,12.12311,2108.1,2106.6,9.4858]
[1625166280871,0.08,2108.0,2106.6,9.4858]
[1625166280972,3.1885,2108.0,2106.6,9.4858]
[1625166281071,8.1985,2108.0,2106.6,9.4858]
[1625166281175,8.1185,2108.0,2106.6,9.4858]
[1625166282070,3.55738,2107.8,2106.6,9.4858]
[1625166282325,8.56738,2107.8,2106.6,9.4858]
[1625166282471,7.11483,2107.5,2106.2,11.85438]
[1625166282620,16.51074154,2107.5,2106.1,2.30916649]
[1625166282770,16.51074154,2107.5,2106.0,33.18128821]
[1625166282771,4.39330976,2107.5,2106.0,20.4511]
[1625166282919,9.40330976,2107.5,2106.0,10.3337]
[1625166283617,12.85076822,2107.5,2106.0,19.8158547]
[1625166283718,7.11547,2107.4,2106.0,26.9325347]
[1625166283817,7.11547,2107.4,2106.1,0.1]
[1625166283969,0.00739822,2107.5,2106.2,0.08]
[1625166284169,0.00739822,2107.5,2106.2,2.24298821]
[1625166284271,0.00739822,2107.5,2106.2,4.48901431]
[1625166284472,0.00739822,2107.5,2106.3,15.0]
[1625166284619,0.00739822,2107.5,2106.3,23.5666212]
[1625166284773,10.2407,2108.2,2106.8,7.11249]
[1625166284870,10.8534,2108.3,2106.8,11.84669]
[1625166284978,10.8534,2108.3,2106.8,16.85669]
[1625166285123,6.3654,2108.3,2106.9,13.55666201]
[1625166285220,6.3654,2108.3,2106.9,23.75431423]
[1625166285319,6.3654,2108.3,2106.9,31.28092632]
[1625166285470,6.3654,2108.3,2107.0,0.06]
[1625166285668,10.4861,2108.7,2107.0,0.06]
[1625166285871,6.179,2108.8,2107.7,7.11073]
[1625166285872,13.28999,2108.8,2107.7,7.11073]
[1625166286369,18.29999,2108.8,2107.7,7.11073]
[1625166286683,18.29999,2108.8,2107.6,1.0154]
[1625166286775,29.70499,2108.8,2107.6,1.0154]
[1625166286872,3.5563439,2108.6,2107.1,9.4811]
[1625166286977,7.11299,2108.0,2107.1,9.4811]
[1625166291116,12.12299,2108.0,2107.1,9.4811]
[1625166291575,7.11299,2108.0,2107.1,9.4811]
[1625166292077,12.12299,2108.0,2107.1,9.4811]
[1625166292224,7.11299,2108.0,2107.1,9.4811]
[1625166292827,7.11299,2108.0,2106.9,9.48359]
[1625166293325,7.11299,2108.0,2107.0,0.16]
[1625166293576,7.0057,2108.1,2107.0,0.16]
[1625166293777,5.7137,2108.1,2107.1,2.52810943]
[1625166293934,10.66919,2108.3,2107.4,7.11214]
[1625166294031,9.48398,2108.6,2107.4,7.11214]
[1625166294190,21.1025,2108.7,2107.2,9.54286]
[1625166294191,21.1025,2108.7,2107.3,4.9413]
[1625166294192,10.4337,2108.7,2107.3,4.9413]
[1625166294281,10.4337,2108.7,2107.5,2.52810943]
[1625166294430,6.179,2108.8,2107.5,2.52810943]
[1625166294530,6.179,2108.8,2107.5,4.92659764]
[1625166294637,6.179,2108.8,2107.5,9.93659764]
[1625166294935,6.179,2108.8,2108.1,7.10977]
[1625166295031,6.179,2108.8,2108.1,11.03287]
[1625166295590,21.0337,2109.2,2108.1,18.57097943]
[1625166295683,21.0337,2109.2,2108.1,20.96946764]
[1625166295838,10.9833,2109.2,2108.2,0.14]
[1625166295933,10.9833,2109.2,2108.1,8.84969764]
[1625166296140,10.9833,2109.2,2108.5,7.10851]
[1625166296238,7.10896,2109.3,2108.3,9.47801]
[1625166297841,7.10896,2109.3,2108.1,8.84969764]
[1625166297947,7.10896,2109.3,2108.1,4.92659764]
[1625166297948,12.11896,2109.3,2108.1,4.92659764]
[1625166298048,12.11896,2109.3,2108.1,2.52810943]
[1625166298049,16.19756,2109.3,2108.1,2.52810943]
[1625166298143,16.19756,2109.3,2107.6,9.48111]
[1625166298386,16.19756,2109.3,2107.4,10.2978]
[1625166298539,3.55615,2108.4,2107.5,2.0]
[1625166298640,9.16905,2108.4,2107.3,4.92659764]
[1625166300038,9.16905,2108.4,2107.3,9.93659764]
[1625166300188,7.39055,2108.4,2107.5,52.53090945]
[1625166300290,7.39055,2108.4,2107.5,7.11133]
[1625166300387,7.39055,2108.4,2107.6,0.14]
[1625166300526,7.39055,2108.4,2107.5,5.01]
[1625166300628,7.39055,2108.4,2107.5,7.53810943]
[1625166300730,3.8344,2108.4,2107.5,2.52810943]
[1625166300880,13.2905819,2108.8,2107.5,7.53810943]
[1625166300976,13.2905819,2108.8,2107.5,2.52810943]
[1625166301078,13.2905819,2108.8,2107.5,7.53810943]
[1625166301177,9.73451,2108.8,2107.5,2.52810943]
[1625166301278,9.73451,2108.8,2107.5,9.93659764]
[1625166301378,7.11089,2108.7,2107.8,7.11064]
[1625166303027,7.11089,2108.7,2107.8,9.63874943]
[1625166304186,16.59949,2108.7,2107.8,2.52810943]
[1625166304336,16.59949,2108.7,2107.1,29.7259325]
[1625166304433,0.21270597,2108.6,2107.1,29.7259325]
[1625166304529,0.06,2108.6,2107.1,29.7259325]
[1625166304634,0.06,2108.6,2107.1,9.48266]
[1625166304729,3.66532049,2108.5,2107.1,9.48266]
[1625166305063,3.66532049,2108.5,2107.0,10.9018]
[1625166305064,7.11317,2108.0,2107.0,20.38526]
[1625166305151,11.82957,2108.0,2106.7,33.62668821]
[1625166305294,11.82957,2108.0,2106.7,4.39848821]
[1625166305841,11.82957,2108.0,2106.7,9.40848821]
[1625166305940,11.82957,2108.0,2106.7,4.39848821]
[1625166306043,11.82957,2108.0,2106.7,11.93659764]
[1625166306140,11.82957,2108.0,2106.7,9.93659764]
[1625166306506,11.82957,2108.0,2106.8,7.1139]
[1625166306706,11.82957,2108.0,2106.8,12.1839]
[1625166307006,11.82957,2108.0,2106.8,12.1239]
[1625166307736,16.83957,2108.0,2106.8,12.1239]
[1625166307942,16.83957,2108.0,2106.7,4.92659764]
[1625166308139,16.83957,2108.0,2106.7,2.39848821]
[1625166308243,16.84586609,2108.0,2106.7,2.39848821]
[1625166308342,3.55771,2107.5,2106.3,9.48477]
[1625166308491,9.83451,2107.5,2106.3,9.48477]
[1625166308892,7.1155,2107.4,2106.4,7.11542]
[1625166309390,0.01466641,2107.0,2106.4,7.11542]
[1625166309548,3.45633283,2107.0,2106.4,7.11542]
[1625166309746,3.45633283,2107.0,2106.3,9.48477]
[1625166310149,8.46633283,2107.0,2106.0,0.13934897]
[1625166310249,3.45633283,2107.0,2106.0,0.13934897]
[1625166310349,8.46633283,2107.0,2106.0,0.13934897]
[1625166310545,3.45633283,2107.0,2106.0,0.13934897]
[1625166311002,8.46633283,2107.0,2106.0,0.13934897]
[1625166311099,3.45633283,2107.0,2106.0,0.13934897]
[1625166311202,0.06,2106.9,2105.9,0.1394814]
[1625166311351,7.11805,2106.7,2105.9,0.1394814]
[1625166311548,12.12805,2106.7,2105.9,0.1394814]
[1625166311653,5.01,2106.9,2105.6,0.13944892]
[1625166311910,4.75183283,2107.0,2105.6,0.13944892]
[1625166311911,9.76183283,2107.0,2105.6,0.13944892]
[1625166312008,9.76183283,2107.0,2105.5,0.13945126]
[1625166312108,9.76183283,2107.0,2105.6,2.52810943]
[1625166312208,9.76183283,2107.0,2105.6,2.66761069]
[1625166312410,7.11805,2106.7,2105.7,7.11784]
[1625166312560,12.12805,2106.7,2105.7,7.11784]
[1625166313061,12.12805,2106.7,2105.7,9.64594943]
[1625166313207,7.11805,2106.7,2105.7,9.64594943]
[1625166313560,9.76183283,2107.0,2105.7,14.65594943]
[1625166313658,4.75183283,2107.0,2105.7,17.05443764]
[1625166314102,3.45633283,2107.0,2105.7,17.19386657]
[1625166314350,3.45633283,2107.0,2105.8,0.08]
[1625166314449,8.45166642,2107.0,2105.8,0.08]
[1625166314603,8.45166642,2107.0,2105.7,17.19386657]
[1625166314604,8.437,2107.0,2105.7,17.19386657]
[1625166314702,8.437,2107.0,2105.7,14.66575714]
[1625166314802,0.01466641,2106.4,2105.8,2.52810943]
[1625166314901,0.02933283,2106.4,2105.8,2.52810943]
[1625166315005,0.02933283,2106.4,2105.8,7.53810943]
[1625166315159,8.56847,2107.1,2105.9,29.35]
[1625166315305,3.55847,2107.1,2105.9,29.35]
[1625166315402,7.1174,2107.0,2105.9,41.47693]
[1625166315605,7.1174,2107.0,2106.0,2.52810943]
[1625166315707,20.10399,2107.5,2106.0,2.52810943]
[1625166315810,10.0311,2107.4,2106.0,12.50490943]
[1625166315958,10.6139,2107.5,2106.1,15.18]
[1625166316057,10.6139,2107.5,2106.1,20.19]
[1625166316158,10.6139,2107.5,2106.1,22.56488408]
[1625166316320,10.6139,2107.5,2106.2,2.52810943]
[1625166316465,10.6139,2107.5,2106.2,17.56810943]
[1625166316566,10.6139,2107.5,2106.7,7.11436]
[1625166316714,9.48698,2107.8,2106.7,10.18806]
[1625166316863,10.4457,2107.9,2106.7,10.18806]
[1625166316962,10.4457,2107.9,2106.8,2.52810943]
[1625166317264,15.4557,2107.9,2106.8,2.52810943]
[1625166318415,22.56997,2107.9,2106.8,2.52810943]
[1625166318768,3.55725,2107.8,2106.8,2.52810943]
[1625166318972,8.56769,2107.8,2106.3,2.37488408]
[1625166319072,0.16,2107.7,2106.2,10.1984]
[1625166319224,0.16,2107.7,2106.0,2.52810943]
[1625166319419,2.42366753,2107.7,2105.9,0.13934256]
[1625166319573,10.45472,2106.9,2105.6,11.12985842]
[1625166319819,10.45472,2106.9,2105.6,10.9905]
[1625166320120,10.45472,2106.9,2105.6,17.52810943]
[1625166320229,10.45472,2106.9,2105.7,0.14]
[1625166320230,3.3376,2106.9,2105.7,0.14]
[1625166320324,3.3376,2106.9,2105.7,2.58945555]
[1625166320431,3.55811,2107.2,2105.8,15.0]
[1625166320530,9.9506,2107.5,2105.8,20.01]
[1625166320676,9.9506,2107.5,2106.6,7.11434]
[1625166320814,7.11452,2107.6,2106.6,11.64084]
[1625166320914,7.11452,2107.6,2106.6,16.65084]
[1625166321112,7.11452,2107.6,2106.7,2.52810943]
[1625166321267,22.54983767,2107.9,2106.7,2.52810943]
[1625166321268,10.4457,2107.9,2106.7,2.52810943]
[1625166321369,3.55731,2107.7,2106.7,7.53810943]
[1625166321594,10.4457,2107.9,2106.8,2.48945555]
[1625166321692,10.4457,2107.9,2107.0,7.11308]
[1625166321797,7.11336,2108.0,2107.0,7.11308]
[1625166321894,11.86069,2108.1,2107.0,12.12308]
[1625166321995,10.25771213,2108.7,2107.0,12.12308]
[1625166322143,28.9091,2108.4,2107.0,14.57253555]
[1625166322442,28.9091,2108.4,2107.1,7.06700943]
[1625166322594,28.9091,2108.4,2107.1,22.06700943]
[1625166322746,7.1132,2108.1,2107.1,14.17977943]
[1625166323065,7.1132,2108.1,2107.1,7.06700943]
[1625166323269,7.1132,2108.1,2107.1,4.5389]
[1625166323420,0.1,2108.0,2107.1,4.5389]
[1625166323569,0.1,2108.0,2107.0,1.2497]
[1625166323665,0.1,2108.0,2106.5,10.5477]
[1625166323919,10.81326,2107.3,2106.3,13.49590943]
[1625166324168,10.81326,2107.3,2106.3,2.52810943]
[1625166324416,3.55827,2107.1,2106.3,2.52810943]
[1625166324517,8.56827,2107.1,2106.3,2.52810943]
[1625166324619,8.56827,2107.1,2105.9,21.4939848]
[1625166324720,8.56827,2107.1,2105.6,33.27890943]